Cogmind - Beta 13 @@@ ROGUE MODE // 2024.04.20 @ 16:42:55 Player: Spoodle Result: Destroyed by L-31 Rogue with Katana Performance ------------- Evolutions (0) 0 Regions Visited (3) 600 Robots Destroyed (19) 95 Value Destroyed (600) 600 Prototype IDs (0) 0 Alien Tech Used (0) 0 Bonus (0) 0 TOTAL SCORE: 1295 Bonus ------- None Cogmind --------- Core Integrity 0/250 Matter 290/300 Energy 100/100 System Corruption 0% Temperature Cool (0) Movement Treading (160) Location -8/Recycling Parts ------- > --- POWER (1) -------- (None) > --- PROPULSION (2) --- Spiked Treads Spiked Treads > --- UTILITY (2) ------ Scrap Engine > --- WEAPON (2) ------- (None) > --- INVENTORY (5) ---- Improved Heat Sink Small Storage Unit Makeshift Thermal Plating Makeshift Sword Peak State ------------ > --- POWER ------------ Light Angular Momentum Engine > --- PROPULSION ------- Spiked Treads Spiked Treads > --- UTILITY ---------- Scrap Engine > --- WEAPON ----------- Riot Gun Beamcaster > --- INVENTORY -------- Improved Heat Sink Small Storage Unit Makeshift Thermal Plating Battle Rifle Makeshift Sword [Rating: 34] Favorites ----------- Power Ion Engine Engine Ion Engine Propulsion Spiked Treads Treads Spiked Treads Leg Myomer Leg Wheel Subdweller Monowheel Utility Scrap Shield Device Seismic Detector Storage Small Storage Unit Protection Scrap Shield Weapon Beamcaster Energy Gun Beamcaster Ballistic Gun Light Assault Rifle Launcher Subdweller Shrapnel Launcher Special Weapon Flamer Slashing Weapon Makeshift Sword Build | -11 -10 -10 -8 ------- Run | Yrd Mat Sub Rec Slots Evolved . | . . . . Power . | . . . . Propulsion . | . . . . Utility . | . . . . Weapon . | . . . . Parts Attached 40 | 8 8 22 2 Power 4 | 1 2 1 . Engine 4 | 1 2 1 . Core . | . . . . Reactor . | . . . . Propulsion 12 | 2 2 8 . Treads 4 | . 2 2 . Leg 4 | . . 4 . Wheel 4 | 2 . 2 . Hover . | . . . . Flight . | . . . . Utility 9 | 2 1 5 1 Device 5 | 1 1 2 1 Storage 1 | 1 . . . Processor . | . . . . Hackware . | . . . . Protection 3 | . . 3 . Artifact . | . . . . Weapon 15 | 3 3 8 1 Energy Gun 10 | 2 2 5 1 Energy Cannon . | . . . . Ballistic Gun 2 | 1 1 . . Ballistic Cannon . | . . . . Launcher 1 | . . 1 . Special Weapon 1 | . . 1 . Impact Weapon . | . . . . Slashing Weapon 1 | . . 1 . Piercing Weapon . | . . . . Special Melee Weapon . | . . . . Unidentified Prototypes . | . . . . Parts Lost 7 | . 5 . 2 Power 3 | . 2 . 1 Propulsion . | . . . . Utility 1 | . 1 . . Weapon 3 | . 2 . 1 Highest Loss Streak 2 | . 2 . 2 To Critical Strikes . | . . . . Average Slot Usage (%) 86 | . 94 84 82 Engine 13 | . 12 14 13 Treads 13 | . 28 8 28 Leg 10 | . . 13 . Wheel 3 | . . 4 . Device 5 | . 10 2 13 Storage 3 | . 14 1 . Protection 8 | . . 11 . Energy Gun 26 | . 24 26 26 Ballistic Gun 1 | . 2 . . Naked Turns . | . . . . Heaviest Build 35 | 12 13 35 35 Greatest Support 40 | 26 40 40 40 Greatest Overweight (x) 1 | . . 1 . Average Overweight (x) . | . . . . Largest Inventory Capacity 8 | 8 8 8 5 Average Capacity 5 | 7 8 5 5 Most Carried 8 | 6 8 8 5 Average Carried 5 | 3 7 5 4 Final Capacity 8 | 8 8 5 5 Final Carried 8 | 6 8 5 4 Scrap Engine Consumption 3 | . . . 3 Class Distribution -------------------- 43% | Mutant 28% | Scavenger-Mutant 18% | Derelict-Mutant 9% | Subdweller-Mutant Dominant Class ---------------- Mutant | -10/Materials Scavenger-Mutant | -10/Subcaves Derelict-Mutant | -8/Recycling Resources | -11 -10 -10 -8 ----------- Run | Yrd Mat Sub Rec Matter Collected 748 | 250 103 395 . Remotely . | . . . . Salvage Created 761 | 17 343 349 52 Parts 36 | 2 14 18 2 Haulers Intercepted . | . . . . Recyclers Shooed . | . . . . Parts Field Recycled . | . . . . Retrieved Matter . | . . . . Parts Self-Destructed 21 | . . 21 . Prevented . | . . . . Kills | -11 -10 -10 -8 ------- Run | Yrd Mat Sub Rec Combat Hostiles Destroyed 17 | . 6 10 1 Guns 15 | . 5 9 1 AOE 1 | . . 1 . Classes Destroyed 6 | 1 2 2 1 Tunneler 1 | 1 . . . Recycler 1 | . 1 . . Swarmer 3 | . . 3 . Grunt 7 | . 6 1 . Demolisher 1 | . . . 1 Subdweller 6 | . . 6 . Best Kill Streak 3 | 1 3 3 1 Combat Bots Only 3 | . 2 3 1 Max Kills in Single Turn 2 | 1 1 2 1 Gunslinging . | . . . . Exploded 1 | . . 1 . Melee . | . . . . Uniques/NPCs Destroyed . | . . . . Combat | -11 -10 -10 -8 -------- Run | Yrd Mat Sub Rec Hostile Shots Fired 90 | . 37 46 7 Missed 18 | . 6 11 1 Damage Taken 1157 | . 454 514 189 Core 255 | . 80 112 63 Absorbed by Shields . | . . . . Core Remaining (%) 100 | 100 . . . Volleys Fired 53 | 2 22 27 2 Largest 2 | 2 2 2 2 Hottest 165 | 80 80 165 125 Shots Fired 98 | 4 37 53 4 Gun 95 | 4 37 50 4 Cannon . | . . . . Launcher . | . . . . Special 3 | . . 3 . Kinetic 8 | 1 7 . . Thermal 59 | 1 9 47 2 Explosive . | . . . . Electromagnetic 31 | 2 21 6 2 Robot Hit Streak 8 | 1 5 8 4 Robot Miss Streak 3 | . 3 3 1 Penetration Max . | . . . . Secondary Targets 1 | . . 1 . Max Gunslinging Chain 1 | . . 1 . Shots Hit Robots 69 | 1 26 39 3 Core Hits 31 | 1 13 16 1 Critical Kills . | . . . . Critical Parts Destroyed . | . . . . Critical Strikes 2 | . . 2 . Burn 2 | . . 2 . Melee Attacks 1 | . . 1 . Impact . | . . . . Slashing 1 | . . 1 . Piercing . | . . . . Sneak Attacks . | . . . . Combat Hostiles . | . . . . Follow-up Attacks . | . . . . Damage Inflicted 1109 | 12 310 737 50 Guns 1065 | 12 310 693 50 Cannons . | . . . . Explosions 32 | . . 32 . Melee . | . . . . Ramming . | . . . . Kinetic 48 | . 48 . . Thermal 751 | . 65 665 21 Explosive . | . . . . Electromagnetic 310 | 12 197 72 29 Impact . | . . . . Slashing . | . . . . Piercing . | . . . . Highest Corruption . | . . . . Average Corruption . | . . . . Corruption Purged . | . . . . Corruption Blocked . | . . . . Overload Shots . | . . . . Overflow Damage . | . . . . Projectiles . | . . . . Explosions . | . . . . Melee . | . . . . Knockbacks . | . . . . Impact . | . . . . Kinetic . | . . . . Secondary . | . . . . Self-Inflicted Damage . | . . . . Shots . | . . . . Rammed . | . . . . Targets Rammed . | . . . . Kicked . | . . . . Crushed . | . . . . Highest Temperature 228 | 20 228 144 138 Average Temperature 55 | 13 79 38 74 Received Heat Transfer 357 | . 249 108 . Effects 1 | . 1 . . Interference 1 | . 1 . . Siege Activations . | . . . . Robots Corrupted 1 | . 1 . . Combat Hostiles 1 | . 1 . . Parts Fried 1 | . 1 . . Impact Corruptions . | . . . . Robots Melted . | . . . . Combat Hostiles . | . . . . Parts Melted 4 | . . 4 . Heat Transferred 1686 | . 150 1499 37 Parts Sabotaged . | . . . . Parts Stolen . | . . . . Parts Stripped . | . . . . Power Chain Reactions 1 | . . 1 . Alert | -11 -10 -10 -8 ------- Run | Yrd Mat Sub Rec Peak Influence 90 | 5 90 . 87 Initial 60 | . 3 . 60 Average 29 | . 17 . 63 Maximum Alert Level . | . . . . Low Security (%) 100 | 100 100 . 100 Level 1 . | . . . . Level 2 . | . . . . Level 3 . | . . . . Level 4 . | . . . . Level 5 . | . . . . High Security . | . . . . Max Security . | . . . . Squads Dispatched 2 | . 2 . . Investigation 1 | . 1 . . Extermination . | . . . . Reinforcement 1 | . 1 . . Assault . | . . . . Garrison . | . . . . Intercept . | . . . . Searches Triggered . | . . . . Construction Impeded . | . . . . Haulers Reinforced . | . . . . Active Scanning Responses . | . . . . Cargo Convoy Interrupts . | . . . . Stealth | -11 -10 -10 -8 --------- Run | Yrd Mat Sub Rec Distress Signals . | . . . . Communications Jammed . | . . . . Distress Signals . | . . . . Times Spotted 34 | . 7 23 4 Peak Tracking Total 5 | . 2 5 3 Tactical Retreats 2 | . . 2 . Traps | -11 -10 -10 -8 ------- Run | Yrd Mat Sub Rec Traps Triggered 1 | . 1 . . Indirectly . | . . . . Trap Hack Attempts . | . . . . Triggered . | . . . . Disarmed . | . . . . Reprogrammed . | . . . . Reused . | . . . . Traps Extracted . | . . . . Installed . | . . . . Triggered 2 | . . 2 . Machines | -11 -10 -10 -8 ---------- Run | Yrd Mat Sub Rec Machines Disabled . | . . . . Max in Single Turn . | . . . . Machines Repaired . | . . . . Machines Dismantled . | . . . . Machines Sabotaged . | . . . . Overloaded Fab Kills . | . . . . Hacking | -11 -10 -10 -8 --------- Run | Yrd Mat Sub Rec Machines Accessed 4 | . 2 1 1 Terminals 3 | . 2 . 1 Fabricators . | . . . . Repair Stations . | . . . . Recycling Units . | . . . . Scanalyzers . | . . . . Garrison Access . | . . . . Total Hacks 11 | . 4 5 2 Successful 9 | . 3 5 1 Failed 2 | . 1 . 1 Catastrophic . | . . . . Database Lockouts . | . . . . Manual . | . . . . Terminals 6 | . 4 . 2 Fabricators . | . . . . Repair Stations . | . . . . Recycling Units . | . . . . Scanalyzers . | . . . . Garrison Access . | . . . . Terminal Hacks 9 | . 3 5 1 Record 5 | . . 5 . Branch Access Points 1 | . . . 1 Locate Traps 1 | . 1 . . Dispatch Records 1 | . 1 . . Zone Layout 1 | . 1 . . Fabricator Hacks . | . . . . Repair Station Hacks . | . . . . Recycling Unit Hacks . | . . . . Scanalyzer . | . . . . Garrison Access Hacks . | . . . . Unauthorized Hacks . | . . . . Terminals . | . . . . Fabricators . | . . . . Repair Stations . | . . . . Recycling Units . | . . . . Scanalyzers . | . . . . Garrison Access . | . . . . Data Cores Recovered . | . . . . Used . | . . . . Hacking Detections 3 | . 2 . 1 Full Trace Events 1 | . 1 . . Feedback Events . | . . . . Feedback Blocked . | . . . . Robot Schematics Acquired . | . . . . Robots Built . | . . . . Authchips . | . . . . Time . | . . . . Total Robot Build Rating . | . . . . Part Schematics Acquired . | . . . . Parts Built . | . . . . Authchips . | . . . . Time . | . . . . Total Part Build Rating . | . . . . Parts Repaired . | . . . . Time . | . . . . Parts Recycled . | . . . . Recycled Matter . | . . . . Retrieved Matter . | . . . . Retrieved Components . | . . . . Parts Scanalyzed . | . . . . Part Schematics Acquired . | . . . . Parts Damaged . | . . . . Bothacking | -11 -10 -10 -8 ------------ Run | Yrd Mat Sub Rec Used RIF Installer . | . . . . Robots Hacked . | . . . . Non-combat . | . . . . Combat . | . . . . Robot Hacks Applied . | . . . . Relay Couplers Released . | . . . . Fabnet Peak Effective % . | . . . . Robots Rewired . | . . . . Allies Hacked . | . . . . Hacks Repelled . | . . . . Allies | -11 -10 -10 -8 -------- Run | Yrd Mat Sub Rec Total Allies . | . . . . Largest Group . | . . . . Highest-Rated Group . | . . . . Highest-Rated Ally . | . . . . Total Orders . | . . . . Ally Attacks . | . . . . Total Damage . | . . . . Kills . | . . . . Allies Corrupted . | . . . . Allies Melted . | . . . . Intel | -11 -10 -10 -8 ------- Run | Yrd Mat Sub Rec Robot Analysis Total . | . . . . Derelict Logs Recovered 2 | . . 2 . Drone Launches . | . . . . Drone Recoveries . | . . . . Exploration | -11 -10 -10 -8 ------------- Run | Yrd Mat Sub Rec Turns Passed 2932 | 73 489 2135 235 Spaces Moved 1646 | 50 251 1208 137 Core 1 | 1 . . . Treads 574 | . 251 186 137 Legs 712 | . . 712 . Wheels 359 | 49 . 310 . Hover . | . . . . Flight . | . . . . Fastest Speed 50 | 50 160 110 160 Average Speed 145 | 91 160 143 160 Slowest Speed 190 | 100 160 190 160 Overloaded Moves . | . . . . Propulsion Burnouts . | . . . . Robots Hopped . | . . . . Cave-ins Triggered . | . . . . Exploration Rate (%) 24 | 4 17 54 22 Regions Visited 3 Branch Regions 2 Pre-discovered Areas 1 | . . 1 . Known Exits Taken . | . . . . Unknown Exits Taken 3 | 1 1 1 . Scrap Searched . | . . . . Spaces Dug . | . . . . Terrain Destroyed 3 | . . 3 . Melee . | . . . . Projectile . | . . . . AOE 3 | . . 3 . Terrain Rammed . | . . . . Walls Destroyed . | . . . . Machines Disabled . | . . . . Actions | -11 -10 -10 -8 --------- Run | Yrd Mat Sub Rec Total 2082 | 69 304 1560 149 Wait 280 | 4 11 263 2 Move 1643 | 49 250 1207 137 Hop . | . . . . Pick Up 24 | 6 9 9 . Fast Attach 23 | 7 2 12 2 Attach 5 | . 4 1 . Detach . | . . . . Swap 12 | 1 2 9 . Drop 32 | . 4 25 3 Fire 53 | 2 22 27 2 Melee 1 | . . 1 . Ram . | . . . . Kick . | . . . . Crush . | . . . . Escape Stasis . | . . . . Rewire 3 | . . . 3 Trap . | . . . . Miscellaneous 6 | . . 6 . Route ------- -11/Scrapyard -10/Materials -10/Subcaves (discovered 2 exits: *Mat / *Rec) -8/Recycling History --------- Turn | Location | Event 32 | -11/Scrapyard | Discovered new exit (range 16) 74 | -11/Scrapyard | Entered Materials 313 | -10/Materials | Build established: Mutant 542 | -10/Materials | Discovered new exit (range 10) 563 | -10/Materials | Entered Subcaves 588 | -10/Subcaves | Identified exit to Materials 671 | -10/Subcaves | Ambushed by swarm of Subdwellers 719 | -10/Subcaves | A swath of the cavern ceiling suddenly collapsed 785 | -10/Subcaves | Learned 2 Materials zone layouts 981 | -10/Subcaves | Build established: Scavenger-Mutant 1146 | -10/Subcaves | Core integrity fell below 50% 1272 | -10/Subcaves | Visited Clippyterm 1275 | -10/Subcaves | Learned location of Section 7 (-2) 1275 | -10/Subcaves | Learned Research security intel 1275 | -10/Subcaves | Learned Research machine intel 2082 | -10/Subcaves | Build established: Mutant 2309 | -10/Subcaves | Shifting Twisted Machinery released Spk. Treads 2604 | -10/Subcaves | Ambushed by Subdwellers from Twisted Machinery 2663 | -10/Subcaves | Discovered new exit (range 10) 2667 | -10/Subcaves | Build established: Derelict-Mutant 2698 | -10/Subcaves | Entered Recycling 2705 | -8/Recycling | Found Scrap Engine 2916 | -8/Recycling | Core integrity fell below 20% 2933 | -8/Recycling | Destroyed by L-31 Rogue with Katana Last Messages --------------- 02705_ Acquired Scrap Engine. 02707_ Dropped Riot Gun. 02709_ Dropped Battle Rifle. 02710_ Scrap Engine consumes Battle Rifle. 02711_ Acquired Riot Gun. 02846_ Connecting with Terminal... 02846_ Current location identified: Recycling >>Access(Branch) No branch access points found. 02915_ D-53 Grenadier springs to life. 02915_ Destroyed Shock Absorption System. 02916_ B-36 Bruiser springs to life. 02918_ D-53 Grenadier destroyed. 02920_ Beamcaster severed. 02921_ Scrap Engine consumes Beamcaster. 02922_ R-06 Scavenger collects Imp. Light Armor Plating. 02923_ Scrap Engine consumes Lgt. Deuterium Engine. 02923_ Riot Gun destroyed. 02923_ Lgt. Angular Momentum Engine destroyed. 02930_ Attempting to rewire G-47 Trooper. Map ----- +----------------------------------------------------+ | | | | | | | | | | | | | | | | | | | | | ??????????????????????????????????? | | ??????????????????????????????????? | | ?????#########????????????????????? | | ?????# ????????????????????? | | ####?# #???????????????????? | | #?# ###############?????? | | ### # ## ###???? | | "" ## # #???? | | "" #?# + #???? | | "" #?# # r #???? | | #?# # ## % #####??? | | "" #?# ## #### a#??? | | "" #?# ## #??# p#??? | | "" #?# ## #??#! ! /#??? | | #?########### #??# lb #??? | | #???????????# #??#ug@ a#??? | | #???????????# #??# a t ! #??? | | ################ #??# !u #??? | | #??#p t!t! #??? | | #??# r ! #??? | | #??#######+##??? | | !! #######+#########??????????????? | | !!!## #???????????????????? | | ##### """ """ #???????????????????? | | ????# """ """ #???????????????????? | | ????# """ """ #???????????????????? | | ????# #???????????????????? | | ????# #???????????????????? | | ????# #???????????????????? | | ????# #???????????????????? | | ????###########???????????????????? | | ??????????????????????????????????? | | ??????????????????????????????????? | | ??????????????????????????????????? | | ??????????????????????????????????? | | ??????????????????????????????????? | | ??????????????????????????????????? | | ??????????????????????????????????? | | ??????????????????????????????????? | | ??????????????????????????????????? | +----------------------------------------------------+ Best States ------------- Heat Dissipation 25 Energy Generation 18 Energy Capacity 250 Matter Stores 300 Matter Capacity 300 Sight Range 16 Terrain Scan Density 10 Armor Coverage 800 Evasion (%) 55 Recoil Reduction 2 Item Schematics ----------------- None Robot Schematics ------------------ None Fabricated ------------ Nothing Alien Tech Used ----------------- None Achievements -------------- None Challenges ------------ None Game ------ Seed SurveybotGaussCasing Manual? 0 Play Time 00:28:36 Cumulative 38.3 hours Start 2024.04.20 @ 16:10:12 End 2024.04.20 @ 16:42:55 Sessions 1 Manual Loads 0 Difficulty Rogue Special Mode None Game No. 25 Rogue 25 Adventurer 0 Explorer 0 Win Type - Total 0 Types 0/0/0/0/0/0/0/0/0 Lore% 30 Gallery% 36 Achievement% 28 Wizard Run 0 Options --------- Layout 0 ASCII 0 Keyboard 0 Movement Mouse Keybinds 0 Fullscreen 2 Font 18/SmallcapsGlow Map View 76x50 Zoom Use 0% Tactical HUD 1 Map Filters NONE Filters NONE Steam 1 RUN: 07a76964-e678-4afd-93a5-56a01f58bd99